Cogmind - Beta 12 @@@ ROGUE MODE // 2023.12.09 @ 00:46:28 Player: Kel Result: Self-destructed Performance ------------- Evolutions (4) 2000 Regions Visited (6) 1200 Robots Destroyed (0) 0 Value Destroyed (0) 0 Prototype IDs (2) 40 Alien Tech Used (0) 0 Bonus (1325) 1325 TOTAL SCORE: 4565 Bonus ------- Pacifist 1325 Cogmind --------- Core Integrity 577/850 Matter 95/300 Energy 75/100 System Corruption 0% Temperature Cool (3) Movement Flying (37) Location -6/Extension Parts ------- > --- POWER (2) -------- (None) > --- PROPULSION (3) --- Nuclear Pulse Thruster Nuclear Pulse Thruster > --- UTILITY (8) ------ Advanced Visual Processing Unit Advanced Sensor Array Improved Signal Interpreter Propulsion Shielding Improved Hacking Suite > --- WEAPON (2) ------- (None) > --- INVENTORY (5) ---- Improved Gravmag System Triangulator Advanced Terrain Scanner Improved Terrain Scan Processor Transmission Jammer Peak State ------------ > --- POWER ------------ Light Ion Engine Light Deuterium Engine > --- PROPULSION ------- Xenon Bombardment Thruster Nuclear Pulse Thruster Nuclear Pulse Thruster > --- UTILITY ---------- Trap Scanner Advanced Visual Processing Unit Advanced Sensor Array Improved Signal Interpreter Transmission Jammer Propulsion Shielding Improved Hacking Suite Improved System Restoration Module > --- WEAPON ----------- Improved Datajack > --- INVENTORY -------- Improved Gravmag System Triangulator Advanced Terrain Scanner Improved Terrain Scan Processor Transmission Jammer [Rating: 52] Favorites ----------- Power Light Ion Engine Engine Light Ion Engine Propulsion Improved Flight Unit Flight Unit Improved Flight Unit Utility Propulsion Shielding Device Trap Scanner Processor Advanced Visual Processing Unit Hackware Improved Hacking Suite Protection Propulsion Shielding Weapon Improved Datajack Special Melee Weapon Improved Datajack Build | -11 -10 -9 -8 -7 -6 -6 ------- Run | Jun Mat Mat Mat Fac Fac Ext Slots Evolved 8 | . . 2 2 2 2 . Power 1 | . . . . . 1 . Propulsion 1 | . . . 1 . . . Utility 6 | . . 2 1 2 1 . Weapon . | . . . . . . . Parts Attached 26 | 1 . 5 4 6 8 2 Power 4 | 1 . . 1 1 1 . Engine 4 | 1 . . 1 1 1 . Core . | . . . . . . . Reactor . | . . . . . . . Propulsion 6 | . . 1 1 1 1 2 Treads . | . . . . . . . Leg . | . . . . . . . Wheel . | . . . . . . . Hover . | . . . . . . . Flight 6 | . . 1 1 1 1 2 Utility 15 | . . 4 2 4 5 . Device 7 | . . 1 . 2 4 . Storage . | . . . . . . . Processor 6 | . . 2 2 2 . . Hackware 1 | . . . . . 1 . Protection 1 | . . 1 . . . . Artifact . | . . . . . . . Weapon 1 | . . . . . 1 . Energy Gun . | . . . . . . . Energy Cannon . | . . . . . . . Ballistic Gun . | . . . . . . . Ballistic Cannon . | . . . . . . . Launcher . | . . . . . . . Special Weapon . | . . . . . . . Impact Weapon . | . . . . . . . Slashing Weapon . | . . . . . . . Piercing Weapon . | . . . . . . . Special Melee Weapon 1 | . . . . . 1 . Unidentified Prototypes 1 | . . 1 . . . . Parts Lost 9 | . . . 2 . . 7 Power 3 | . . . 1 . . 2 Propulsion 1 | . . . . . . 1 Utility 4 | . . . 1 . . 3 Weapon 1 | . . . . . . 1 Highest Loss Streak 7 | . . . 2 . . 7 To Critical Strikes . | . . . . . . . Average Slot Usage (%) 70 | . 14 51 65 74 88 89 Engine 10 | . 14 11 9 7 12 12 Flight 15 | . . 9 17 16 20 20 Device 14 | . . 10 5 11 22 24 Processor 18 | . . 11 25 30 17 13 Hackware 2 | . . . . . 5 6 Protection 6 | . . 8 9 7 6 6 Special Melee Weapon 1 | . . . . . 3 5 Naked Turns . | . . . . . . . Heaviest Build 16 | 3 3 5 5 9 16 16 Greatest Support 18 | 3 3 5 9 15 17 18 Greatest Overweight (x) 1 | . . 1 . . . . Average Overweight (x) . | . . . . . . . Largest Inventory Capacity 5 | 5 5 5 5 5 5 5 Average Capacity 5 | 5 5 5 5 5 5 5 Most Carried 5 | 5 3 3 4 5 5 5 Average Carried 3 | 2 3 3 3 3 4 5 Final Capacity 5 | 5 5 5 5 5 5 5 Final Carried 5 | 3 3 3 3 5 5 5 Class Distribution -------------------- 67% | Mutant 22% | Ninja 10% | Scout Dominant Class ---------------- Mutant | -10/Materials Mutant | -9/Materials Mutant | -8/Materials Mutant | -7/Factory Ninja | -6/Factory Ninja | -6/Extension Resources | -11 -10 -9 -8 -7 -6 -6 ----------- Run | Jun Mat Mat Mat Fac Fac Ext Matter Collected 210 | 210 . . . . . . Remotely . | . . . . . . . Salvage Created . | . . . . . . . Parts . | . . . . . . . Haulers Intercepted . | . . . . . . . Recyclers Shooed . | . . . . . . . Parts Field Recycled . | . . . . . . . Retrieved Matter . | . . . . . . . Parts Self-Destructed . | . . . . . . . Prevented . | . . . . . . . Kills | -11 -10 -9 -8 -7 -6 -6 ------- Run | Jun Mat Mat Mat Fac Fac Ext Combat Hostiles Destroyed . | . . . . . . . Classes Destroyed . | . . . . . . . Best Kill Streak . | . . . . . . . Combat Bots Only . | . . . . . . . Max Kills in Single Turn . | . . . . . . . Gunslinging . | . . . . . . . Exploded . | . . . . . . . Melee . | . . . . . . . Uniques/NPCs Destroyed . | . . . . . . . Combat | -11 -10 -9 -8 -7 -6 -6 -------- Run | Jun Mat Mat Mat Fac Fac Ext Damage Taken 724 | . . 88 58 35 77 466 Core 354 | . . 29 29 23 54 219 Absorbed by Shields 43 | . . . . . . 43 Redirected to Shielding 30 | . . 4 . . 1 25 Core Remaining (%) 96 | 100 100 92 94 96 . . Volleys Fired . | . . . . . . . Largest . | . . . . . . . Hottest . | . . . . . . . Shots Fired . | . . . . . . . Gun . | . . . . . . . Cannon . | . . . . . . . Launcher . | . . . . . . . Special . | . . . . . . . Kinetic . | . . . . . . . Thermal . | . . . . . . . Explosive . | . . . . . . . Electromagnetic . | . . . . . . . Robot Hit Streak . | . . . . . . . Robot Miss Streak . | . . . . . . . Penetration Max . | . . . . . . . Secondary Targets . | . . . . . . . Shots Hit Robots 2 | . . . . . 1 1 Core Hits . | . . . . . . . Critical Kills . | . . . . . . . Critical Parts Destroyed . | . . . . . . . Critical Strikes . | . . . . . . . Melee Attacks 2 | . . . . . 1 1 Impact . | . . . . . . . Slashing . | . . . . . . . Piercing . | . . . . . . . Sneak Attacks 2 | . . . . . 1 1 Combat Hostiles . | . . . . . . . Follow-up Attacks . | . . . . . . . Damage Inflicted . | . . . . . . . Guns . | . . . . . . . Cannons . | . . . . . . . Explosions . | . . . . . . . Melee . | . . . . . . . Ramming . | . . . . . . . Kinetic . | . . . . . . . Thermal . | . . . . . . . Explosive . | . . . . . . . Electromagnetic . | . . . . . . . Impact . | . . . . . . . Slashing . | . . . . . . . Piercing . | . . . . . . . Highest Corruption 1 | . . . . . 1 . Average Corruption 1 | . . . . . 1 . Corruption Purged 1 | . . . . . 1 . Corruption Blocked . | . . . . . . . Overload Shots . | . . . . . . . Overflow Damage . | . . . . . . . Projectiles . | . . . . . . . Explosions . | . . . . . . . Melee . | . . . . . . . Knockbacks . | . . . . . . . Impact . | . . . . . . . Kinetic . | . . . . . . . Secondary . | . . . . . . . Self-Inflicted Damage . | . . . . . . . Shots . | . . . . . . . Rammed . | . . . . . . . Targets Rammed . | . . . . . . . Kicked . | . . . . . . . Crushed . | . . . . . . . Highest Temperature 9 | . . . 9 . . . Average Temperature 9 | . . . 9 . . . Received Heat Transfer 126 | . . 27 54 9 . 36 Siege Activations . | . . . . . . . Robots Corrupted . | . . . . . . . Combat Hostiles . | . . . . . . . Parts Fried . | . . . . . . . Impact Corruptions . | . . . . . . . Robots Melted . | . . . . . . . Combat Hostiles . | . . . . . . . Parts Melted . | . . . . . . . Heat Transferred . | . . . . . . . Parts Sabotaged . | . . . . . . . Parts Stolen . | . . . . . . . Parts Stripped . | . . . . . . . Power Chain Reactions . | . . . . . . . Missiles Intercepted . | . . . . . . . Alert | -11 -10 -9 -8 -7 -6 -6 ------- Run | Jun Mat Mat Mat Fac Fac Ext Peak Influence 314 | . 45 146 76 314 215 267 Initial 153 | . . 18 61 34 153 105 Average 115 | . 17 65 56 131 184 159 Maximum Alert Level 1 | . . . . 1 1 1 Low Security (%) 86 | 100 100 100 100 80 73 78 Level 1 13 | . . . . 19 26 21 Level 2 . | . . . . . . . Level 3 . | . . . . . . . Level 4 . | . . . . . . . Level 5 . | . . . . . . . High Security . | . . . . . . . Max Security . | . . . . . . . Squads Dispatched 7 | . . 1 . 4 . 2 Investigation 3 | . . 1 . 1 . 1 Extermination . | . . . . . . . Reinforcement 4 | . . . . 3 . 1 Assault . | . . . . . . . Garrison . | . . . . . . . Intercept . | . . . . . . . Searches Triggered . | . . . . . . . Construction Impeded . | . . . . . . . Haulers Reinforced . | . . . . . . . Active Scanning Responses . | . . . . . . . Cargo Convoy Interrupts . | . . . . . . . Stealth | -11 -10 -9 -8 -7 -6 -6 --------- Run | Jun Mat Mat Mat Fac Fac Ext Distress Signals 1 | . 1 . . . . . Communications Jammed 15 | . . . . . . 15 Distress Signals 15 | . . . . . . 15 Times Spotted 44 | . 3 6 2 14 1 18 Peak Tracking Total 13 | . 3 3 2 5 1 13 Tactical Retreats 9 | . 1 1 . 5 . 2 Traps | -11 -10 -9 -8 -7 -6 -6 ------- Run | Jun Mat Mat Mat Fac Fac Ext Traps Triggered 6 | . . 1 . 1 1 3 Indirectly . | . . . . . . . Trap Hack Attempts 5 | . . . . . . 5 Triggered . | . . . . . . . Disarmed . | . . . . . . . Reprogrammed 1 | . . . . . . 1 Reused 1 | . . . . . . 1 Traps Extracted . | . . . . . . . Installed . | . . . . . . . Triggered 1 | . . . . . . 1 Machines | -11 -10 -9 -8 -7 -6 -6 ---------- Run | Jun Mat Mat Mat Fac Fac Ext Machines Disabled . | . . . . . . . Max in Single Turn . | . . . . . . . Garrison Access 3 | . . . 1 1 1 . Machines Repaired . | . . . . . . . Machines Sabotaged . | . . . . . . . Overloaded Fab Kills . | . . . . . . . Hacking | -11 -10 -9 -8 -7 -6 -6 --------- Run | Jun Mat Mat Mat Fac Fac Ext Machines Accessed 27 | . . 4 4 8 7 4 Terminals 23 | . . 4 3 7 5 4 Fabricators . | . . . . . . . Repair Stations . | . . . . . . . Recycling Units . | . . . . . . . Scanalyzers . | . . . . . . . Garrison Access 4 | . . . 1 1 2 . Total Hacks 78 | . . 12 14 25 15 12 Successful 45 | . . 9 8 15 7 6 Failed 33 | . . 3 6 10 8 6 Catastrophic 4 | . . . 1 2 1 . Database Lockouts . | . . . . . . . Manual 72 | . . 10 13 23 14 12 Terminals 73 | . . 12 13 23 13 12 Fabricators . | . . . . . . . Repair Stations . | . . . . . . . Recycling Units . | . . . . . . . Scanalyzers . | . . . . . . . Garrison Access 5 | . . . 1 2 2 . Terminal Hacks 9 | . . 2 2 3 2 . Prototype ID Bank 1 | . . 1 . . . . Branch Access Points 2 | . . . 1 . 1 . Zone Layout 6 | . . 1 1 3 1 . Fabricator Hacks . | . . . . . . . Repair Station Hacks . | . . . . . . . Recycling Unit Hacks . | . . . . . . . Scanalyzer . | . . . . . . . Garrison Access Hacks 3 | . . . 1 1 1 . Seal Access 3 | . . . 1 1 1 . Unauthorized Hacks 33 | . . 7 5 11 4 6 Terminals 33 | . . 7 5 11 4 6 Assimilate 13 | . . 3 2 5 1 2 Botnet 20 | . . 4 3 6 3 4 Fabricators . | . . . . . . . Repair Stations . | . . . . . . . Recycling Units . | . . . . . . . Scanalyzers . | . . . . . . . Garrison Access . | . . . . . . . Data Cores Recovered . | . . . . . . . Used . | . . . . . . . Hacking Detections 24 | . . 4 3 7 6 4 Full Trace Events 2 | . . . . 1 . 1 Feedback Events . | . . . . . . . Feedback Blocked . | . . . . . . . Robot Schematics Acquired . | . . . . . . . Robots Built . | . . . . . . . Authchips . | . . . . . . . Time . | . . . . . . . Total Robot Build Rating . | . . . . . . . Part Schematics Acquired . | . . . . . . . Parts Built . | . . . . . . . Authchips . | . . . . . . . Time . | . . . . . . . Total Part Build Rating . | . . . . . . . Parts Repaired . | . . . . . . . Time . | . . . . . . . Parts Recycled . | . . . . . . . Recycled Matter . | . . . . . . . Retrieved Matter . | . . . . . . . Retrieved Components . | . . . . . . . Parts Scanalyzed . | . . . . . . . Part Schematics Acquired . | . . . . . . . Parts Damaged . | . . . . . . . Bothacking | -11 -10 -9 -8 -7 -6 -6 ------------ Run | Jun Mat Mat Mat Fac Fac Ext Used RIF Installer . | . . . . . . . Robots Hacked 1 | . . . . . . 1 Non-combat 1 | . . . . . . 1 Combat . | . . . . . . . Robot Hacks Applied 1 | . . . . . . 1 find_station 1 | . . . . . . 1 Relay Couplers Released . | . . . . . . . Fabnet Peak Effective % . | . . . . . . . Robots Rewired . | . . . . . . . Allies Hacked . | . . . . . . . Hacks Repelled . | . . . . . . . Allies | -11 -10 -9 -8 -7 -6 -6 -------- Run | Jun Mat Mat Mat Fac Fac Ext Total Allies 1 | . . . 1 . . . Largest Group 1 | . . . 1 1 . . Highest-Rated Group 10 | . . . 10 10 . . Highest-Rated Ally 10 | . . . 10 10 . . Total Orders . | . . . . . . . Ally Attacks . | . . . . . . . Total Damage . | . . . . . . . Kills . | . . . . . . . Allies Corrupted . | . . . . . . . Allies Melted . | . . . . . . . Intel | -11 -10 -9 -8 -7 -6 -6 ------- Run | Jun Mat Mat Mat Fac Fac Ext Robot Analysis Total . | . . . . . . . Derelict Logs Recovered . | . . . . . . . Drone Launches . | . . . . . . . Drone Recoveries . | . . . . . . . Exploration | -11 -10 -9 -8 -7 -6 -6 ------------- Run | Jun Mat Mat Mat Fac Fac Ext Turns Passed 1260 | 67 54 261 103 347 295 133 Spaces Moved 2797 | 46 107 521 258 836 814 215 Core 195 | 46 107 42 . . . . Treads . | . . . . . . . Legs . | . . . . . . . Wheels . | . . . . . . . Hover . | . . . . . . . Flight 2602 | . . 479 258 836 814 215 Fastest Speed 34 | 50 50 40 37 34 34 34 Average Speed 37 | 50 50 43 37 36 34 34 Slowest Speed 100 | 50 50 100 40 37 34 34 Overloaded Moves . | . . . . . . . Propulsion Burnouts . | . . . . . . . Robots Hopped 16 | . . 3 . 8 2 3 Cave-ins Triggered . | . . . . . . . Exploration Rate (%) 25 | 3 30 30 24 21 23 49 Regions Visited 6 Branch Regions 1 Pre-discovered Areas . | . . . . . . . Known Exits Taken 2 | . . . . 1 1 . Unknown Exits Taken 4 | 1 1 1 1 . . . Scrap Searched . | . . . . . . . Spaces Dug . | . . . . . . . Terrain Destroyed . | . . . . . . . Melee . | . . . . . . . Projectile . | . . . . . . . AOE . | . . . . . . . Terrain Rammed . | . . . . . . . Walls Destroyed . | . . . . . . . Machines Disabled . | . . . . . . . Actions | -11 -10 -9 -8 -7 -6 -6 --------- Run | Jun Mat Mat Mat Fac Fac Ext Total 2981 | 91 106 550 263 868 831 272 Wait 74 | 32 . 28 . 11 . 3 Move 2760 | 45 106 514 257 820 809 209 Hop 15 | . . 3 . 7 2 3 Pick Up 20 | 8 . . 2 4 6 . Fast Attach 12 | 1 . 5 1 3 1 1 Attach 6 | . . . 2 1 3 . Detach 1 | . . . . . 1 . Swap 8 | . . . 1 2 4 1 Drop 13 | 5 . . . 2 4 2 Fire . | . . . . . . . Melee 2 | . . . . . 1 1 Ram . | . . . . . . . Kick . | . . . . . . . Crush . | . . . . . . . Escape Stasis 65 | . . . . 18 . 47 Rewire . | . . . . . . . Trap 5 | . . . . . . 5 Miscellaneous . | . . . . . . . Route ------- -11/Junkyard -10/Materials -9/Materials (discovered 2 exits: *Mat / [*Min]) -8/Materials -7/Factory (discovered 3 exits: *Fac / *Sto x2) -6/Factory (discovered 4 exits: Low x2 / *Ext x2) -6/Extension History --------- Turn | Location | Event 12 | -11/Junkyard | Discovered new exit (range 15) 68 | -11/Junkyard | Entered Materials 109 | -10/Materials | Discovered new exit (range 12) 122 | -10/Materials | Entered another Materials area 122 | -9/Materials | Evolved 2 slots: Utility x2 233 | -9/Materials | Discovered new exit (range 6) 306 | -9/Materials | Build established: Mutant 376 | -9/Materials | Discovered new exit (range 16) 383 | -9/Materials | Entered another Materials area 383 | -8/Materials | Evolved 2 slots: Propulsion x1, Utility x1 472 | -8/Materials | Discovered new exit (range 5) 486 | -8/Materials | Entered Factory 486 | -7/Factory | Accompanied by 1 ally 486 | -7/Factory | Evolved 2 slots: Utility x2 644 | -7/Factory | Discovered new exit (range 13) 730 | -7/Factory | Discovered new exit (range 7) 732 | -7/Factory | Identified exit to Storage 770 | -7/Factory | Discovered exit to Storage (range 20) 833 | -7/Factory | Identified exit to Factory 833 | -7/Factory | Entered another Factory area 833 | -6/Factory | Evolved 2 slots: Power x1, Utility x1 905 | -6/Factory | Identified exit to Lower Caves 905 | -6/Factory | Identified exit to Extension 1128 | -6/Factory | Entered Extension 1252 | -6/Extension | Spotted B-75 Beast 1253 | -6/Extension | Spotted B-75 Beast 1261 | -6/Extension | Self-destructed Last Messages --------------- 01243_ W-25 Informer distress signal jammed. 01243_ Field strength at 54. 01244_ W-25 Informer distress signal jammed. 01244_ Field strength at 49. 01245_ Field strength at 40. 01246_ Field strength at 31. 01247_ Field strength at 19. 01248_ Field strength at 14. 01249_ Field strength at 1. 01250_ Stasis field depleted. 01252_ Lgt. Ion Engine destroyed. 01252_ W-25 Informer distress signal jammed. 01255_ Transmission Jammer destroyed. 01255_ Trap Scanner destroyed. 01255_ Lgt. Deuterium Engine destroyed. 01255_ K-01 Serf destroyed. 01258_ Imp. System Restoration Module destroyed. 01260_ R-10 Processor collects Wheel. 01261_ Penetrated by Slug. 01261_ Xenon Bombardment Thruster destroyed. Map ----- +----------------------------------------------------+ | ##### #??????????????????????????????????????????? | | #???# #??????????????????????????????????????????? | | #???# #??????????????????????????????????????????? | | #???# #???????? ????????????????????????????????? | | #???# #???????? ????????????????????????????????? | | #???# #???????? ????????????????????????????????? | | #???# #???????# ????????????????????????????????? | | #???# #???????# #???????????????????????????????? | | #???# #???????# #???????????????????????????????? | | #???# #???????# ??l????????????????????????????? | | ##### #???????# #???????????????????????????????? | | %#???????# #???????????????????????????????? | | ##### #???????# #???????????????????????????????? | | ????# #???????? #???????????????????????????????? | | ????# #?###???? #???????????????????????????????? | | ????# #?#"####?# #???????????????????????????????? | | ??### ### ## ### ###?????????????????????????????? | | ??#"" "" "" ""#?????????????????????????????? | | ??# " " " #?????????????????????????????? | | ??# ss Y #?????????????????????????????? | | ??# % #?????????????????????????????? | | ??# #########################?????? | | ?????? | | gg ????? | | g ????? | | @ h ????? | | Rt h ????? | | ### BB BB ;;#####################???????? | | ??# B BB #?????????????????????????????? | | ??# #?????????????????????????????? | | ??# #?????????????????????????????? | | ??# #?????????????????????????????? | | ??######T#"""#######?????????????????????????????? | | ???????##????????????????????????????????????????? | | ?????????????????????????????????????????????????? | | | | | | | | | | | | | | | | | | | | | | | | | | | | | | | +----------------------------------------------------+ Best States ------------- Heat Dissipation 37 Energy Generation 19 Energy Capacity 165 Matter Stores 300 Matter Capacity 300 Sight Range 20 Robot Scan Range 16 Terrain Scan Density 10 Jamming Range 12 Propulsion Shielding 33 Evasion (%) 63 Offensive Hacking 12 Item Schematics ----------------- None Robot Schematics ------------------ None Fabricated ------------ Nothing Alien Tech Used ----------------- None Achievements -------------- Hehehe I Spy Total Silence root@ Challenges ------------ None Game ------ Seed SlugImpulseBoosters Manual? 0 Play Time 00:30:33 Cumulative 19.2 hours Start 2023.12.09 @ 00:14:28 End 2023.12.09 @ 00:46:28 Sessions 1 Manual Loads 0 Difficulty Rogue Special Mode None Game No. 35 Rogue 35 Adventurer 0 Explorer 0 Win Type - Total 0 Types 0/0/0/0/0/0/0/0/0 Lore% 22 Gallery% 23 Achievement% 20 Wizard Run 0 Options --------- ASCII 0 Keyboard 1 Movement Numpad Keybinds 0 Fullscreen 1 Font 18/Terminus Map View 76x50 Tactical HUD 1 Map Filters NONE Filters NONE Steam 1 RUN: 956aaf78-0efc-4009-96ea-bab2bd767d39